bitfinex-derivatives/quotes_BTCF0:USTF0_20241003
["timestamp","ask_amount","ask_price","bid_price","bid_amount"]
[1727985194386,1.733906,60966.0,60965.0,0.002]
[1727985194594,2.01268,60966.0,60943.0,0.082055]
[1727985194841,0.08206,60941.0,60940.0,0.082059]
[1727985195992,0.082051,60947.0,60946.0,0.08205]
[1727985196495,0.272037,60957.0,60946.0,0.19]
[1727985196791,0.082045,60952.0,60951.0,0.082044]
[1727985197110,1.582045,60952.0,60951.0,0.082044]
[1727985197595,0.082045,60952.0,60951.0,0.082044]
[1727985197986,0.1539168,60952.0,60951.0,0.082044]
[1727985198183,1.6539168,60952.0,60951.0,0.082044]
[1727985198588,0.1539168,60952.0,60951.0,0.082044]
[1727985199384,0.2618718,60952.0,60946.0,0.03107036]
[1727985199588,0.19,60947.0,60946.0,0.03107036]
[1727985199798,0.2618718,60947.0,60946.0,0.03107036]
[1727985200095,0.26187496,60947.0,60946.0,0.03107036]
[1727985200294,0.26187496,60947.0,60946.0,0.02407036]
[1727985200498,0.26187496,60947.0,60937.0,0.3608]
[1727985200685,0.082055,60944.0,60943.0,0.082054]
[1727985200886,0.11374956,60944.0,60943.0,0.082054]
[1727985201497,0.03169456,60944.0,60943.0,0.082054]
[1727985202093,0.11374856,60944.0,60943.0,0.082054]
[1727985202691,0.03369456,60944.0,60943.0,0.082054]
[1727985204188,0.03169456,60944.0,60943.0,0.082054]
[1727985204584,0.002,60944.0,60943.0,0.082054]
[1727985204790,0.03369175,60944.0,60943.0,0.083054]
[1727985205204,0.11374575,60944.0,60943.0,0.083054]
[1727985205393,0.11474575,60944.0,60943.0,0.083054]
[1727985206098,0.084054,60944.0,60943.0,0.083054]
[1727985207295,0.086054,60944.0,60943.0,0.082054]
[1727985208024,0.084054,60944.0,60943.0,0.083054]
[1727985208301,0.085054,60944.0,60943.0,0.083054]
[1727985208688,0.086054,60944.0,60943.0,0.082054]
[1727985211203,0.085054,60944.0,60943.0,0.082054]
[1727985211397,0.088054,60944.0,60943.0,0.082054]
[1727985211603,0.085054,60944.0,60943.0,0.082054]
[1727985212104,0.087054,60944.0,60943.0,0.082054]
[1727985212603,0.005,60944.0,60943.0,0.082054]
[1727985212804,0.082054,60945.0,60944.0,0.082052]
[1727985214018,0.085054,60945.0,60944.0,0.082052]
[1727985214501,0.082054,60945.0,60944.0,0.082052]
[1727985214702,0.084054,60945.0,60944.0,0.082052]
[1727985215811,0.083054,60945.0,60944.0,0.082052]
[1727985216825,0.083054,60945.0,60944.0,0.10666868]
[1727985217703,0.082054,60945.0,60944.0,0.10666868]
[1727985218021,0.082054,60945.0,60944.0,0.10766868]
[1727985218516,0.083054,60945.0,60944.0,0.10666868]
[1727985219113,0.084054,60945.0,60944.0,0.10666868]
[1727985221218,0.084054,60945.0,60944.0,0.17134949]
[1727985221517,0.084054,60945.0,60944.0,0.10666868]
[1727985223205,0.3608,60956.0,60954.0,0.08204]
[1727985223408,0.082041,60955.0,60954.0,0.08204]
[1727985223612,0.082044,60952.0,60951.0,0.14699903]
[1727985224310,0.082044,60952.0,60951.0,0.082044]
[1727985225411,0.087044,60952.0,60951.0,0.082044]
[1727985227013,0.084044,60952.0,60951.0,0.082044]
[1727985227405,0.082044,60952.0,60951.0,0.082044]
[1727985227621,0.084044,60952.0,60951.0,0.10626237]
[1727985232907,0.002,60952.0,60951.0,0.10626237]
[1727985233111,0.082027,60965.0,60964.0,0.082025]
[1727985233310,0.11371798,60965.0,60964.0,0.082025]
[1727985233827,0.03169098,60965.0,60964.0,0.082025]
[1727985234013,0.03169098,60965.0,60964.0,0.442825]
[1727985234410,0.082017,60972.0,60967.0,0.082023]
[1727985234611,0.082023,60968.0,60967.0,0.082023]
[1727985234820,0.03168814,60968.0,60967.0,0.082023]
[1727985235712,0.03168814,60968.0,60964.0,0.38667526]
[1727985235713,0.082019,60970.0,60968.0,0.082021]
[1727985236017,0.03168846,60969.0,60968.0,0.082021]
[1727985236215,0.48301494,60969.0,60964.0,0.02587526]
[1727985236421,0.18105292,60968.0,60967.0,0.082023]
[1727985236722,0.12221494,60968.0,60967.0,0.084023]
[1727985237219,0.11881476,60968.0,60967.0,0.575103]
[1727985237410,0.21190773,60968.0,60967.0,1.175103]
[1727985237617,0.19545109,60968.0,60967.0,1.175103]
[1727985237820,0.19545109,60968.0,60967.0,1.176103]
[1727985238019,0.03168697,60968.0,60967.0,1.176103]
[1727985238611,0.14729783,60968.0,60967.0,1.175103]
[1727985238820,0.14729783,60968.0,60967.0,1.176103]
[1727985239218,0.14729783,60968.0,60967.0,0.576103]
[1727985239521,0.14729783,60969.0,60968.0,0.082022]
[1727985239720,0.16376412,60973.0,60967.0,0.001]
[1727985239915,0.14922787,60968.0,60967.0,0.083023]
[1727985240117,0.002,60968.0,60967.0,0.083023]
[1727985240320,0.14722885,60968.0,60967.0,0.083023]
[1727985240620,0.14722885,60968.0,60967.0,1.175103]
[1727985240818,0.14722885,60968.0,60967.0,1.174103]
[1727985241146,0.14571299,60972.0,60967.0,1.174103]
[1727985241367,0.076,60986.0,60967.0,1.174103]
[1727985241368,0.11205612,60973.0,60972.0,0.082017]
[1727985241584,0.11205612,60973.0,60972.0,0.309617]
[1727985241792,0.14082817,60986.0,60972.0,1.31964]
[1727985241916,0.14082817,60986.0,60981.0,0.19]
[1727985242112,0.14082817,60986.0,60981.0,0.082005]
[1727985242320,0.24034436,60985.0,60972.0,0.2276]
[1727985242514,0.24034436,60985.0,60977.0,0.082009]
[1727985242515,0.082006,60980.0,60977.0,0.082009]
[1727985242724,0.08894436,60979.0,60978.0,0.082007]
[1727985242923,0.14777453,60979.0,60978.0,0.082007]
[1727985243327,0.120607,60979.0,60978.0,0.082007]
[1727985243525,0.082013,60976.0,60975.0,0.082013]
[1727985244627,0.083013,60976.0,60975.0,0.082013]
[1727985246125,0.084013,60976.0,60975.0,0.082013]
[1727985247731,0.0365,60983.0,60975.0,0.082013]
[1727985247732,0.3608,60991.0,60975.0,0.082013]
[1727985247925,0.081996,60988.0,60984.0,0.19]
[1727985248123,0.081998,60986.0,60985.0,0.081999]
[1727985248331,0.0392,60989.0,60986.0,0.081997]
[1727985248641,0.121195,60989.0,60984.0,0.19]
[1727985248868,0.121195,60989.0,60988.0,0.081995]
[1727985249037,0.3608,60991.0,60988.0,0.081995]
[1727985249038,0.3608,60991.0,60990.0,0.081992]
[1727985250336,0.081994,60989.0,60987.0,0.081995]
[1727985250629,0.19,60989.0,60988.0,0.081995]
[1727985250831,0.276994,60989.0,60988.0,0.082995]
[1727985251026,0.276994,60989.0,60988.0,0.001]
[1727985251526,0.081994,60989.0,60988.0,0.081995]
[1727985252726,0.442791,60991.0,60990.0,0.081992]
[1727985254531,0.3608,60991.0,60990.0,0.081992]
[1727985255833,0.3658,60991.0,60990.0,0.082992]
[1727985257331,0.3658,60991.0,60990.0,0.084992]
[1727985257637,0.3608,60991.0,60990.0,0.083992]
[1727985258234,0.45127185,60991.0,60990.0,0.083992]
[1727985258538,0.48294123,60991.0,60990.0,0.083992]
[1727985259434,0.56493223,60991.0,60990.0,0.083992]
[1727985260229,0.48294123,60991.0,60990.0,0.083992]
[1727985260732,0.48294123,60991.0,60990.0,0.273992]
[1727985260934,0.26878117,60991.0,60990.0,0.271992]
[1727985261236,0.01584439,60991.0,60990.0,1.363872]
[1727985261431,0.14663994,60998.0,60990.0,1.363872]
[1727985261628,0.14663994,60998.0,60997.0,0.271983]
[1727985261825,0.10916772,60998.0,60997.0,0.271983]
[1727985262140,0.16298379,61004.0,61003.0,0.081975]
[1727985262334,0.05031362,61004.0,61003.0,0.24921796]
[1727985263514,0.3608,61005.0,61004.0,0.081974]
[1727985263659,0.05366191,61006.0,61005.0,0.573732]
[1727985263949,0.3608,61020.0,61005.0,0.573732]
[1727985263950,0.62203125,61020.0,61005.0,0.573732]
[1727985264127,0.54007925,61020.0,61015.0,0.19]
[1727985264327,0.54007925,61020.0,61019.0,0.271953]
[1727985264535,0.3608,61020.0,61019.0,0.271953]
[1727985265236,0.3658,61020.0,61019.0,0.271953]
[1727985265943,0.3658,61020.0,61019.0,0.272953]
[1727985266237,0.447752,61020.0,61019.0,0.001]
[1727985266446,0.447752,61020.0,61019.0,0.082953]
[1727985266832,0.447752,61020.0,61019.0,0.083953]
[1727985267170,0.005,61020.0,61019.0,0.002]
[1727985267340,0.005,61020.0,61019.0,0.160553]
[1727985267636,0.005,61020.0,61019.0,0.197953]
[1727985268342,0.005,61020.0,61019.0,0.71346636]
[1727985268535,0.005,61020.0,61019.0,0.13987336]
[1727985268736,0.005,61020.0,61019.0,0.71346636]
[1727985268932,0.005,61020.0,61019.0,0.22182636]
[1727985269538,0.005,61020.0,61019.0,0.14632636]
[1727985269737,0.086952,61020.0,61019.0,0.10782636]
[1727985270141,0.086952,61020.0,61019.0,0.10682636]
[1727985270337,0.081952,61020.0,61019.0,0.10682636]
[1727985270556,0.086952,61020.0,61019.0,0.10782636]
[1727985273044,0.005,61020.0,61019.0,0.10782636]
[1727985273339,0.005,61020.0,61019.0,0.29782636]
[1727985277243,0.005,61020.0,61019.0,0.10782636]
[1727985278848,0.086952,61020.0,61019.0,0.10782636]
[1727985280348,0.19,61027.0,61019.0,0.10782636]
[1727985280550,0.14900235,61027.0,61020.0,0.081952]
[1727985281341,0.15400235,61027.0,61019.0,0.02587336]
[1727985281541,0.081949,61023.0,61022.0,0.081949]
[1727985281845,0.081945,61025.0,61020.0,0.081952]
[1727985282043,0.081945,61025.0,61024.0,0.081947]
[1727985282942,0.005,61027.0,61026.0,0.081944]
[1727985283643,0.086943,61027.0,61026.0,0.081944]
[1727985283855,0.081943,61027.0,61026.0,0.081944]
[1727985284151,0.081943,61027.0,61026.0,0.001]
[1727985284341,0.271943,61027.0,61026.0,0.001]
[1727985284748,0.271943,61027.0,61026.0,0.002]
[1727985284951,0.3608,61028.0,61027.0,0.081943]
[1727985285740,0.442741,61028.0,61027.0,0.081943]
[1727985285942,0.3608,61028.0,61027.0,0.081943]
[1727985286151,0.3608,61028.0,61027.0,0.271943]
[1727985286349,0.3608,61028.0,61027.0,0.272943]
[1727985287249,0.3608,61028.0,61027.0,0.273943]
[1727985287855,0.3608,61036.0,61035.0,0.081932]
[1727985288153,0.081927,61039.0,61035.0,0.19]
[1727985288346,0.081927,61039.0,61038.0,0.13024131]
[1727985288546,0.081927,61039.0,61038.0,0.081928]
[1727985289959,0.3608,61043.0,61036.0,0.19]
[1727985290252,0.17927925,61062.0,61036.0,0.19]
[1727985290253,0.03164699,61042.0,61041.0,0.081924]
[1727985290452,0.3608,61048.0,61047.0,0.081916]
[1727985290662,0.39244185,61048.0,61047.0,0.271916]
[1727985291460,0.39244124,61048.0,61047.0,0.271916]
[1727985291755,0.39244124,61048.0,61047.0,0.19]
[1727985291756,0.47435624,61048.0,61047.0,0.19]
[1727985291951,0.081923,61042.0,61038.0,0.191]
[1727985292150,0.081923,61042.0,61041.0,0.081924]
[1727985292370,0.3608,61048.0,61047.0,0.001]
[1727985292552,0.442715,61048.0,61047.0,0.001]
[1727985293152,0.442715,61048.0,61047.0,0.002]
[1727985293757,0.3608,61048.0,61047.0,0.192]
[1727985293960,0.3608,61048.0,61047.0,0.273916]
[1727985294271,0.442705,61056.0,61047.0,0.191]
[1727985294458,0.3608,61056.0,61052.0,0.19]
[1727985294766,0.081908,61053.0,61052.0,0.19]
[1727985295061,0.3608,61056.0,61049.0,0.19]
[1727985295062,0.081911,61051.0,61049.0,0.19]
[1727985295253,0.081911,61053.0,61052.0,0.081908]
[1727985295863,0.081911,61053.0,61052.0,0.082908]
[1727985297269,0.081911,61053.0,61052.0,0.083908]
[1727985297536,0.081911,61053.0,61052.0,0.273908]
[1727985298667,0.081911,61053.0,61052.0,0.29860963]
[1727985298867,0.081911,61053.0,61038.0,0.04831331]
[1727985298868,0.4914,61052.0,61029.0,0.06442196]
[1727985299065,0.19,61032.0,61026.0,0.02442414]
[1727985299364,0.081932,61036.0,61028.0,0.19]
[1727985299567,1.69,61041.0,61029.0,0.0396]
[1727985299568,0.081934,61034.0,61029.0,0.0396]
[1727985299763,1.69,61041.0,61014.0,0.3982]
[1727985299764,0.49152,61040.0,61016.0,0.06442196]
[1727985299964,0.081956,61018.0,61012.0,0.0396]
[1727985300384,0.00120001,61030.0,61023.0,0.081947]
[1727985300753,0.3608,61037.0,61029.0,0.19]
[1727985300865,0.081933,61035.0,61026.0,0.009]
[1727985301256,0.3608,61037.0,61029.0,0.005]
[1727985301563,0.081939,61030.0,61029.0,0.005]
[1727985302063,0.19,61036.0,61026.0,0.012]
[1727985302367,0.081934,61034.0,61026.0,0.003]
[1727985302665,0.3608,61037.0,61023.0,0.005]
[1727985302666,0.19,61027.0,61023.0,0.005]
[1727985302892,0.19,61027.0,61008.0,0.0371]
[1727985302893,0.442747,61024.0,61008.0,0.0371]
[1727985303067,0.271958,61016.0,61008.0,0.0371]
[1727985303464,0.081959,61015.0,61008.0,0.0371]
[1727985303659,0.442748,61024.0,61008.0,0.0371]
[1727985303660,0.19,61018.0,61008.0,0.0371]
[1727985303859,0.081962,61013.0,61008.0,0.0224]
[1727985304065,0.1947,61023.0,61008.0,0.0224]
[1727985304259,0.3608,61024.0,61008.0,0.0224]
[1727985304260,0.3608,61024.0,61014.0,0.19]
[1727985304458,0.3608,61024.0,61023.0,0.001]
[1727985305277,0.3608,61024.0,61018.0,0.19]
[1727985305278,0.082948,61023.0,61018.0,0.19]
[1727985305572,0.001,61023.0,61018.0,0.19]
[1727985305866,0.001,61023.0,61019.0,0.0368]
[1727985306099,0.448747,61024.0,61019.0,0.0368]
[1727985306261,0.3608,61030.0,61022.0,0.19]
[1727985306467,0.3608,61030.0,61026.0,0.19]
[1727985307168,0.3608,61030.0,61027.0,0.0387]
[1727985307374,0.3608,61037.0,61027.0,0.0387]
[1727985307562,0.3608,61037.0,61031.0,0.19]
[1727985307563,0.081934,61034.0,61031.0,0.19]
[1727985307765,0.081935,61033.0,61032.0,0.0398]
[1727985308069,0.081935,61033.0,61027.0,0.0387]
[1727985308070,0.081941,61029.0,61027.0,0.0387]
[1727985308261,0.081941,61029.0,61028.0,0.0398]
[1727985309164,0.084941,61029.0,61028.0,0.0398]
[1727985309569,0.085941,61029.0,61028.0,0.0398]
[1727985310473,0.0613036,61033.0,61028.0,0.24002311]
[1727985310775,0.0613036,61033.0,61032.0,0.06438698]
[1727985311471,0.2513036,61033.0,61031.0,0.06438698]
[1727985311678,0.5508,61032.0,61027.0,0.1270069]
[1727985311974,0.271941,61028.0,61027.0,0.06261992]
[1727985312173,0.271941,61028.0,61023.0,0.06438698]
[1727985312489,0.081948,61023.0,61021.0,0.06438698]
[1727985312675,0.081948,61023.0,61017.0,0.08103585]
[1727985312676,0.19,61022.0,61018.0,0.06438698]
[1727985312869,0.3608,61019.0,61016.0,0.06438698]
[1727985313210,0.271956,61017.0,61016.0,0.06438698]
[1727985313472,0.19,61017.0,61015.0,0.06438698]
[1727985313661,0.081958,61016.0,61015.0,0.06438698]
[1727985313867,0.081958,61016.0,61014.0,0.06438698]
[1727985314471,0.081958,61016.0,61013.0,0.06438698]
[1727985314969,0.081958,61016.0,61014.0,0.003]
[1727985315177,0.081958,61016.0,61014.0,0.06738698]
[1727985315360,0.081958,61016.0,61014.0,0.003]
[1727985315971,0.081958,61016.0,61013.0,0.06838698]
[1727985316174,0.081959,61015.0,61014.0,0.004]
[1727985317066,0.081959,61015.0,61013.0,0.004]
[1727985317067,0.081959,61015.0,61013.0,0.009]
[1727985317368,0.08196,61014.0,61013.0,0.009]
[1727985317570,0.07996,61014.0,61013.0,0.005]
[1727985318370,0.3608,61019.0,61013.0,0.08996]
[1727985318568,0.081958,61016.0,61013.0,0.008]
[1727985318766,0.08196,61015.0,61014.0,0.004]
[1727985319350,0.08196,61015.0,61013.0,0.008]
[1727985319469,0.3608,61019.0,61013.0,0.008]
[1727985319671,0.08196,61014.0,61013.0,0.008]
[1727985319871,0.07796,61014.0,61013.0,0.003]
[1727985320477,0.07796,61014.0,61013.0,0.008]
[1727985323005,0.07796,61014.0,61013.0,0.089962]
[1727985323485,0.07796,61014.0,61013.0,0.008]
[1727985323981,0.07796,61014.0,61013.0,0.089962]
[1727985324168,0.3608,61019.0,61013.0,0.008]
[1727985324370,0.3608,61019.0,61018.0,0.081955]
[1727985324578,0.2986,61019.0,61018.0,0.081955]
[1727985325582,0.0216,61037.0,61029.0,0.08194]
[1727985325786,0.081935,61033.0,61029.0,0.08194]
[1727985326381,0.442739,61030.0,61029.0,0.08194]
[1727985326587,0.081939,61030.0,61029.0,0.08194]
[1727985326786,0.081939,61030.0,61013.0,0.003]
[1727985326787,0.08196,61014.0,61013.0,0.003]
[1727985327887,0.001,61014.0,61013.0,0.093962]
[1727985328183,0.3678,61030.0,61025.0,0.081944]
[1727985328184,0.081944,61027.0,61025.0,0.081944]
[1727985328383,0.081944,61026.0,61025.0,0.081944]
[1727985329186,0.081944,61026.0,61021.0,0.08195]
[1727985329516,0.3678,61030.0,61021.0,0.08195]
[1727985329691,0.081946,61025.0,61021.0,0.08195]
[1727985329897,0.081949,61023.0,61015.0,0.0799]
[1727985330095,0.081951,61021.0,61015.0,0.0799]
[1727985330298,0.081951,61021.0,61017.0,0.081955]
[1727985330510,0.081951,61021.0,61018.0,0.081955]
[1727985330896,0.081956,61017.0,61016.0,0.081957]
[1727985331090,0.081947,61024.0,61017.0,0.081955]
[1727985331391,0.081953,61020.0,61018.0,0.122554]
[1727985331599,0.081953,61019.0,61018.0,0.122554]
[1727985331986,0.081953,61020.0,61018.0,0.122554]
[1727985332386,0.081953,61019.0,61018.0,0.122554]
[1727985334798,0.002,61019.0,61018.0,0.483354]
[1727985335396,0.08195,61022.0,61018.0,0.4014]
[1727985335600,0.08195,61022.0,61021.0,0.081951]
[1727985335900,0.08195,61022.0,61021.0,0.14644163]
[1727985336808,0.08395,61022.0,61021.0,0.14644163]
[1727985337906,0.08595,61022.0,61021.0,0.14644163]
[1727985338499,0.08495,61022.0,61021.0,0.14644163]
[1727985339718,0.08595,61022.0,61021.0,0.14644163]
[1727985340202,0.08595,61022.0,61021.0,0.081951]
[1727985341003,0.3608,61038.0,61021.0,0.06453811]
[1727985341004,0.081941,61029.0,61021.0,0.06453811]
[1727985341307,0.081941,61029.0,61028.0,0.081941]
[1727985341499,0.0406,61037.0,61027.0,0.06452305]
[1727985341811,0.081938,61031.0,61030.0,0.081938]
[1727985342007,0.081941,61028.0,61027.0,0.10332305]
[1727985342201,0.081941,61028.0,61027.0,0.0388]
[1727985342509,0.081941,61028.0,61027.0,0.10332305]
[1727985342706,0.081941,61028.0,61027.0,0.120743]
[1727985342903,0.081941,61028.0,61027.0,0.124743]
[1727985343303,0.081941,61028.0,61027.0,0.120743]
[1727985343506,0.085941,61028.0,61027.0,0.14565483]
[1727985343697,0.085941,61028.0,61027.0,0.06371183]
[1727985343901,0.085941,61028.0,61027.0,0.02491183]
[1727985344103,0.081944,61026.0,61025.0,0.443705]
[1727985344309,0.081944,61026.0,61025.0,0.442745]
[1727985345308,0.081944,61026.0,61025.0,0.46658166]
[1727985346568,0.083944,61026.0,61025.0,0.46658166]
[1727985347105,0.083944,61026.0,61025.0,0.38463666]
[1727985347303,0.083944,61026.0,61019.0,0.0405]
[1727985347304,0.081951,61021.0,61020.0,0.06452305]
[1727985347507,0.081951,61021.0,61017.0,0.06452305]
[1727985347715,0.081951,61021.0,61012.0,0.12073585]
[1727985347716,0.08196,61016.0,61015.0,0.081959]
[1727985347900,0.27196,61016.0,61015.0,0.081959]
[1727985348602,0.34374767,61016.0,61015.0,0.081959]
[1727985349108,0.34374767,61016.0,61015.0,0.084959]
[1727985349504,0.34374767,61016.0,61015.0,0.003]
[1727985349733,0.3940525,61016.0,61015.0,0.004]
[1727985350303,0.34374919,61016.0,61015.0,0.004]
[1727985350504,0.08197,61007.0,61006.0,0.2033429]
[1727985350706,0.08197,61007.0,60989.0,0.3608]
[1727985350707,0.67290297,61007.0,60989.0,0.3608]
[1727985350910,0.081991,60993.0,60992.0,0.081989]
[1727985351114,0.081992,60990.0,60989.0,0.46706858]
[1727985351309,0.03165674,60990.0,60989.0,0.46706858]
[1727985351514,0.081988,60994.0,60989.0,0.38507558]
[1727985351715,0.081988,60994.0,60993.0,0.081988]
[1727985352856,0.070988,60994.0,60993.0,0.081988]
[1727985353216,0.071988,60994.0,60993.0,0.081988]
[1727985353407,0.072988,60994.0,60993.0,0.088988]
[1727985355018,0.002,60994.0,60993.0,0.088988]
[1727985355719,0.002,60994.0,60993.0,0.20835518]
[1727985356123,0.083987,60994.0,60993.0,0.20835518]
[1727985356358,0.002,60994.0,60993.0,0.20835518]
[1727985356526,0.083987,60994.0,60993.0,0.20835518]
[1727985357216,0.083987,60994.0,60993.0,0.2888427]
[1727985357519,0.273987,60994.0,60993.0,0.20685691]
[1727985357717,0.273987,60994.0,60993.0,0.007]
[1727985358022,1.28184,60994.0,60993.0,0.08751683]
[1727985358320,1.363827,60994.0,60993.0,0.007]
[1727985358720,0.271987,60994.0,60993.0,0.007]
[1727985358915,0.271987,60994.0,60993.0,0.07142558]
[1727985359211,0.121883,60997.0,60993.0,0.07142558]
[1727985359212,0.081984,60997.0,60993.0,0.007]
[1727985359430,0.081984,60997.0,60996.0,0.14640758]
[1727985359814,0.081984,60997.0,60996.0,0.081982]
[1727985360216,0.081984,60997.0,60996.0,0.14634953]
[1727985360422,0.082984,60997.0,60996.0,0.081982]
[1727985360920,0.082984,60997.0,60996.0,0.14634953]
[1727985361221,0.082984,60997.0,60996.0,0.081982]
[1727985362121,0.082984,60997.0,60996.0,0.085982]
[1727985362726,0.082984,60997.0,60996.0,0.087982]
[1727985362922,0.001,60997.0,60996.0,0.087982]
[1727985363223,0.13531308,73444.0,61007.0,0.081969]
[1727985363224,0.271967,61010.0,61007.0,0.081969]
[1727985363423,0.081972,61008.0,61007.0,0.081969]
[1727985364018,0.081963,61013.0,61002.0,0.081976]
[1727985364227,0.081963,61013.0,61012.0,0.081963]
[1727985364426,0.081963,61013.0,61012.0,0.442763]
[1727985364723,0.1202,61021.0,61012.0,0.442763]
[1727985364724,0.081958,61016.0,61015.0,0.081958]
[1727985365519,0.081962,61013.0,61012.0,0.442763]
[1727985365727,0.081957,61017.0,61012.0,0.442763]
[1727985366032,0.095958,61016.0,61015.0,0.001]
[1727985366619,0.095958,61016.0,61015.0,0.081959]
[1727985366824,0.095958,61016.0,61012.0,0.3618]
[1727985367026,0.081962,61013.0,61012.0,0.3618]
[1727985368320,0.081962,61013.0,61012.0,0.442763]
[1727985368517,0.081962,61013.0,61012.0,0.443763]
[1727985368930,0.081962,61013.0,61012.0,0.001]
[1727985369420,0.081967,61009.0,61008.0,0.0389]
[1727985369728,0.081974,61005.0,61004.0,0.081973]
[1727985370726,0.081974,61004.0,61003.0,0.4237279]
[1727985371933,0.081974,61004.0,61003.0,0.5057029]
[1727985372212,0.087974,61004.0,61003.0,0.5057029]
[1727985372347,0.087974,61004.0,61003.0,0.0629279]
[1727985372675,0.087974,61004.0,61003.0,0.1449029]
[1727985373028,0.087974,61004.0,61003.0,0.0629279]
[1727985374330,0.087974,61004.0,61003.0,0.1449029]
[1727985374932,0.081956,61018.0,61003.0,0.4237279]
[1727985375150,0.081958,61017.0,61016.0,0.081955]
[1727985375436,0.081954,61019.0,61018.0,0.081954]
[1727985376347,0.271951,61022.0,61012.0,0.04]
[1727985376348,0.271951,61022.0,61021.0,0.081951]
[1727985376634,0.081951,61022.0,61021.0,0.081951]
[1727985377231,0.081947,61024.0,61023.0,0.081947]
[1727985377937,0.271946,61026.0,61018.0,0.001]
[1727985378145,0.081953,61021.0,61020.0,0.121751]
[1727985378327,0.081953,61021.0,61020.0,0.0398]
[1727985378529,0.081953,61021.0,61017.0,0.3608]
[1727985378530,0.081955,61018.0,61017.0,0.3608]
[1727985378733,0.081964,61011.0,61010.0,0.0398]
[1727985379137,0.19,61013.0,61012.0,0.081963]
[1727985379545,0.271962,61013.0,61012.0,0.081963]
[1727985381535,0.271962,61013.0,61009.0,0.081966]
[1727985381536,0.081966,61010.0,61009.0,0.081966]
[1727985381943,0.081967,61009.0,61008.0,0.02638186]
[1727985382147,0.271967,61009.0,61008.0,0.02638186]
[1727985382348,0.271967,61009.0,61008.0,0.10834986]
[1727985382680,0.271967,61009.0,61008.0,0.08442622]
[1727985383739,0.081967,61009.0,61008.0,0.08442622]
[1727985384149,0.081967,61009.0,61008.0,0.08542622]
[1727985384648,0.081961,61015.0,61014.0,0.081959]
[1727985384946,0.11361915,61015.0,61014.0,0.081959]
[1727985385445,0.081967,61012.0,61011.0,0.081964]
[1727985385745,0.271967,61012.0,61011.0,0.1983531]
[1727985386043,0.271967,61012.0,61011.0,0.081964]
[1727985386252,0.271967,61012.0,61011.0,0.1464936]
[1727985386437,0.271967,61012.0,61011.0,0.081964]
[1727985386637,0.271967,61012.0,61011.0,0.14650099]
[1727985386835,0.271967,61012.0,61011.0,0.081964]
[1727985387950,0.085967,61012.0,61011.0,0.081964]
[1727985388241,0.090967,61012.0,61011.0,0.081964]
[1727985388438,0.086967,61012.0,61011.0,0.081964]
[1727985388640,0.091967,61012.0,61011.0,0.081964]
[1727985389137,0.090967,61012.0,61011.0,0.081964]
[1727985389586,0.009,61012.0,61010.0,0.08051683]
[1727985389747,0.081964,61011.0,61010.0,0.08051683]
[1727985390239,0.081967,61009.0,61008.0,0.00245822]
[1727985390545,0.271967,61009.0,61008.0,0.00245822]
[1727985391539,0.275967,61009.0,61008.0,0.00245822]
[1727985391944,0.278967,61009.0,61008.0,0.00245822]
[1727985392143,0.274967,61009.0,61008.0,0.00245822]
[1727985392449,0.279967,61009.0,61008.0,0.00345822]
[1727985392646,0.287967,61009.0,61008.0,0.00345822]
[1727985392844,0.287967,61009.0,61008.0,0.08397505]
[1727985393050,0.287967,61009.0,61008.0,0.00345822]
[1727985394242,0.779687,61009.0,61008.0,0.00345822]
[1727985394438,1.179987,61009.0,61008.0,0.00345822]
[1727985394641,1.69802,61009.0,61001.0,0.06466622]
[1727985394839,0.081979,61000.0,60999.0,0.06466622]
[1727985395146,0.081979,61000.0,60996.0,0.0404]
[1727985395147,0.081982,60998.0,60997.0,0.14664922]
[1727985395342,0.271979,61000.0,60996.0,0.12992612]
[1727985395542,0.081983,60997.0,60996.0,0.0652599]
[1727985395740,0.081983,60997.0,60996.0,0.12992994]
[1727985395939,0.081983,60997.0,60996.0,0.0652599]
[1727985396149,0.079983,60997.0,60996.0,0.1472439]
[1727985396349,0.079983,60997.0,60996.0,0.0652599]
[1727985397053,0.079983,60997.0,60996.0,0.1472439]
[1727985397253,0.079983,60997.0,60996.0,0.0444]
[1727985397443,0.079983,60997.0,60996.0,0.004]
[1727985398254,0.079983,60997.0,60989.0,0.16927605]
[1727985398255,0.49184,60996.0,60988.0,0.08051683]
[1727985398449,0.49184,60996.0,60982.0,0.082003]
[1727985398450,0.082002,60983.0,60982.0,0.082003]
[1727985398649,0.082006,60980.0,60979.0,0.082007]
[1727985399788,0.5508,60983.0,60977.0,0.06347947]
[1727985399789,0.082009,60978.0,60977.0,0.06347947]
[1727985399858,0.272009,60978.0,60977.0,0.14548947]
[1727985400760,0.265009,60978.0,60977.0,0.06347947]
[1727985401161,0.265009,60978.0,60977.0,0.12121]
[1727985401547,0.265009,60978.0,60977.0,0.12421]
[1727985401548,0.267009,60978.0,60977.0,0.12421]
[1727985403060,0.267009,60978.0,60977.0,0.14912067]
[1727985403255,0.077009,60978.0,60977.0,0.14912067]
[1727985403561,0.002,60978.0,60977.0,0.14912067]
[1727985405955,0.084009,60978.0,60977.0,0.14912067]
[1727985406780,0.084009,60978.0,60977.0,0.003]
[1727985407867,0.084009,60978.0,60977.0,0.08501]
[1727985408470,0.084009,60978.0,60977.0,0.003]
[1727985408858,0.0347775,60978.0,60977.0,0.003]
[1727985409253,0.3955775,60978.0,60977.0,0.003]
[1727985409467,0.0347775,60978.0,60977.0,0.003]
[1727985411466,0.0347775,60978.0,60977.0,0.08501]